bitfinex/quotes_SOLUSD_20250401
["timestamp","ask_amount","ask_price","bid_price","bid_amount"]
[1743498747034,20.0,129.22,129.21,16.95409569]
[1743498747233,27.17618104,129.22,129.21,16.95409569]
[1743498747447,34.91488104,129.22,129.21,16.95409569]
[1743498747744,34.91488104,129.22,129.21,9.569e-05]
[1743498748117,44.11740418,129.22,129.2,7.81e-05]
[1743498748318,7.17618104,129.21,129.2,7.81e-05]
[1743498749215,20.0,129.18,129.17,17.75524259]
[1743498749413,34.91728104,129.18,129.17,17.75524259]
[1743498750248,63.6220052,129.18,129.17,4.259e-05]
[1743498750431,27.7411,129.18,129.17,4.259e-05]
[1743498750651,34.91728104,129.18,129.17,4.259e-05]
[1743498751641,27.7411,129.18,129.17,4.259e-05]
[1743498751844,38.97575418,129.18,129.17,4.259e-05]
[1743498753243,18.97575418,129.18,129.17,4.259e-05]
[1743498753445,7.7411,129.18,129.17,4.259e-05]
[1743498755741,100.67545418,129.19,129.17,4.259e-05]
[1743498755934,89.4408,129.19,129.17,4.259e-05]
[1743498756534,7.7402,129.2,129.17,4.259e-05]
[1743498758255,7.7396,129.21,129.17,38.64969145]
[1743498758563,18.97425418,129.21,129.17,38.64969145]
[1743498759232,18.97425418,129.21,129.17,4.259e-05]
[1743498761151,11.23465418,129.2,129.17,4.259e-05]
[1743498761953,7.7405,129.19,129.17,4.259e-05]
[1743498762158,18.97485418,129.2,129.17,38.64969145]
[1743498762554,11.23465418,129.19,129.17,4.259e-05]
[1743498763835,7.7411,129.18,129.17,4.259e-05]
[1743498764151,18.97575418,129.18,129.17,4.259e-05]
[1743498766648,18.97545418,129.19,129.17,4.259e-05]
[1743498767475,11.23465418,129.21,129.17,38.64969145]
[1743498768071,18.97425418,129.21,129.17,38.64969145]
[1743498768443,18.97465418,129.2,129.17,38.64969145]
[1743498769172,0.063,129.18,129.17,38.64969145]
[1743498769541,11.29765418,129.18,129.17,4.259e-05]
[1743498770757,19.03875418,129.18,129.17,4.259e-05]
[1743498773673,14.99310291,129.18,129.17,4.259e-05]
[1743498775088,81.84208966,129.16,129.15,20.88519645]
[1743498775261,89.03109257,129.16,129.14,9.922e-05]
[1743498775572,88.888931,129.15,129.14,9.922e-05]
[1743498775868,7.7435,129.14,129.13,8.872e-05]
[1743498776080,14.93250291,129.14,129.13,8.872e-05]
[1743498776253,20.0,129.11,129.1,1.263e-05]
[1743498776468,27.18900291,129.11,129.1,1.263e-05]
[1743498777649,31.24704615,129.11,129.1,1.263e-05]
[1743498778578,38.99234615,129.11,129.1,1.263e-05]
[1743498780051,31.24704615,129.11,129.1,1.263e-05]
[1743498780252,38.99234615,129.11,129.1,1.263e-05]
[1743498780665,120.69234615,129.11,129.1,1.263e-05]
[1743498782776,120.69234615,129.11,129.1,0.03001263]
[1743498783271,38.99234615,129.11,129.1,0.03001263]
[1743498785165,41.88786929,129.11,129.1,1.263e-05]
[1743498785365,41.60354615,129.11,129.1,1.263e-05]
[1743498786292,7.7453,129.11,129.1,1.263e-05]
[1743498786666,18.99234615,129.11,129.1,1.263e-05]
[1743498788487,18.99204615,129.12,129.1,1.263e-05]
[1743498788782,11.24704615,129.11,129.1,1.263e-05]
[1743498790764,18.99234615,129.11,129.1,1.263e-05]
[1743498797690,14.94105907,129.11,129.1,1.263e-05]
[1743498799187,7.19575907,129.11,129.1,1.263e-05]
[1743498802011,34.94105907,129.11,129.1,1.263e-05]
[1743498805100,116.78322064,129.11,129.1,1.263e-05]
[1743498805781,116.64105907,129.11,129.1,1.263e-05]
[1743498805984,96.64105907,129.11,129.1,1.263e-05]
[1743498806786,96.78322064,129.11,129.09,4.903e-05]
[1743498807089,7.19575907,129.1,129.09,4.903e-05]
[1743498807810,14.94165907,129.1,129.09,4.903e-05]
[1743498808915,20.0,129.07,129.03,18.09198291]
[1743498809209,10.05965907,129.04,129.02,18.59269963]
[1743498809405,27.19575907,129.03,129.02,18.59269963]
[1743498809811,27.19575907,129.03,129.02,9.963e-05]
[1743498809812,39.01298316,129.03,129.02,9.963e-05]
[1743498809993,39.15514473,129.03,129.01,4.312e-05]
[1743498810184,11.26288316,129.02,129.01,4.312e-05]
[1743498810696,11.40504473,129.02,129.01,4.312e-05]
[1743498811897,19.01358316,129.02,129.01,4.312e-05]
[1743498813695,31.75409433,129.02,129.01,4.312e-05]
[1743498817899,20.0,129.0,128.99,21.16011694]
[1743498818208,50.27766632,129.0,128.99,21.16011694]
[1743498818413,50.27766632,129.0,128.99,1.694e-05]
[1743498818616,63.01817749,129.0,128.99,1.694e-05]
[1743498818815,63.16033906,129.0,128.99,1.694e-05]
[1743498819023,63.01817749,129.0,128.99,1.694e-05]
[1743498819514,89.03993906,129.0,128.97,21.56069039]
[1743498819816,11.26288316,128.98,128.97,21.56069039]
[1743498820215,19.01598316,128.98,128.97,21.56069039]
[1743498821316,7.7531,128.98,128.97,21.56069039]
[1743498821514,11.26288316,128.98,128.97,21.56069039]
[1743498822337,19.01598316,128.98,128.97,21.56069039]
[1743498825716,20.0,128.96,128.94,22.16155057]
[1743498826019,112.96288316,128.96,128.95,0.20028672]
[1743498826721,120.71718316,128.96,128.95,0.20028672]
[1743498828233,32.12041117,129.0,128.95,0.20028672]
[1743498828438,7.7525,128.99,128.96,20.0]
[1743498828643,19.01508316,129.0,128.96,20.0]
[1743498828942,11.26288316,129.0,128.96,22.8545]
[1743498829127,19.01478316,129.0,128.96,22.8545]
[1743498829733,14.9596988,129.0,128.96,22.8545]
[1743498829940,7.2077988,128.99,128.96,22.8545]
[1743498830144,7.2077988,128.98,128.95,0.20028672]
[1743498830330,7.2077988,128.96,128.95,0.20028672]
[1743498830727,14.9620988,128.96,128.95,0.20028672]
[1743498830942,7.7543,128.96,128.95,0.20028672]
[1743498831721,27.7539,128.97,128.95,0.20028672]
[1743498832637,39.02217882,128.97,128.95,0.20028672]
[1743498832835,19.02177882,128.98,128.95,20.20028672]
[1743498833441,11.26827882,128.97,128.95,0.20028672]
[1743498833829,19.02177882,128.98,128.95,0.20028672]
[1743498834349,7.7535,128.98,128.95,0.20028672]
[1743498835149,100.72097882,128.99,128.95,0.20028672]
[1743498835829,100.72097882,128.99,128.95,30.20028672]
[1743498836250,81.7,128.99,128.96,20.0]
[1743498836950,81.7,128.99,128.96,50.0]
[1743498837158,89.4526,128.99,128.96,50.0]
[1743498837357,30.0,128.97,128.96,20.0]
[1743498837539,29.3507,128.97,128.96,20.0]
[1743498837959,29.3507,128.97,128.95,0.20028672]
[1743498838155,29.3507,128.97,128.95,18.84993558]
[1743498838350,29.3507,128.97,128.96,20.0]
[1743498839148,29.3507,128.97,128.95,0.20028672]
[1743498839750,37.1048,128.97,128.95,0.20028672]
[1743498840050,48.37307882,128.97,128.95,0.20028672]
[1743498840558,11.26827882,128.96,128.95,0.20028672]
[1743498840864,41.26827882,128.96,128.95,0.20028672]
[1743498841163,37.7543,128.96,128.95,0.20028672]
[1743498841550,30.0,128.96,128.95,0.20028672]
[1743498842266,37.7543,128.96,128.95,0.20028672]
[1743498842644,30.0,128.96,128.95,0.20028672]
[1743498843051,37.7543,128.96,128.95,0.20028672]
[1743498844445,37.8173,128.96,128.95,0.20028672]
[1743498846045,49.08557882,128.96,128.95,0.20028672]
[1743498850567,37.8173,128.96,128.95,0.20028672]
[1743498852663,30.063,128.96,128.95,0.20028672]
[1743498853252,37.8173,128.96,128.95,0.20028672]
[1743498853872,45.02915174,128.96,128.95,0.20028672]
[1743498854571,37.8173,128.96,128.95,0.20028672]
[1743498854775,37.8173,128.96,128.93,7.18e-05]
[1743498854776,20.0,128.94,128.93,7.18e-05]
[1743498854986,20.0,128.91,128.9,12.6108436]
[1743498855149,101.7,128.91,128.9,12.6108436]
[1743498855348,20.0,128.88,128.87,0.48492858]
[1743498855572,34.97095174,128.88,128.87,2.858e-05]
[1743498855868,0.14216157,128.87,128.85,4.07e-06]
[1743498856059,20.0,128.84,128.83,2.646e-05]
[1743498856255,27.21185174,128.84,128.83,2.646e-05]
[1743498856665,20.0,128.85,128.83,2.646e-05]
[1743498856862,7.21185174,128.84,128.83,2.646e-05]
[1743498857456,7.7615,128.84,128.83,2.646e-05]
[1743498857667,20.0,128.84,128.83,2.646e-05]
[1743498857878,11.28975191,128.84,128.83,2.646e-05]
[1743498859563,49.05125191,128.84,128.83,2.646e-05]
[1743498860280,30.0,128.84,128.83,2.646e-05]
[1743498860456,41.28975191,128.84,128.83,2.646e-05]
[1743498861682,30.0,128.84,128.83,2.646e-05]
[1743498863775,41.28975191,128.84,128.83,2.646e-05]
[1743498864557,30.0,128.84,128.83,2.646e-05]
[1743498864874,49.05125191,128.84,128.83,2.646e-05]
[1743498865474,41.28975191,128.84,128.83,2.646e-05]
[1743498866689,49.05125191,128.84,128.83,2.646e-05]
[1743498866980,41.28975191,128.84,128.83,2.646e-05]
[1743498867387,30.0,128.84,128.83,2.646e-05]
[1743498867765,30.0,128.84,128.83,46.55393689]
[1743498867965,30.0,128.84,128.83,46.69609846]
[1743498868289,81.7,128.91,128.87,20.0]
[1743498868461,11.28975191,128.93,128.87,20.0]
[1743498868871,11.28975191,128.93,128.89,20.0]
[1743498869257,93.75372522,128.94,128.89,20.0]
[1743498869474,12.05372522,128.94,128.91,20.0]
[1743498869681,11.28975191,128.95,128.91,20.0]
[1743498870263,11.28975191,128.95,128.91,27.7572]
[1743498870467,30.0,128.92,128.91,27.7572]
[1743498870760,30.0,128.92,128.91,46.40684886]
[1743498871355,11.35275191,128.96,128.91,46.40684886]
[1743498872787,0.063,128.96,128.93,20.0]
[1743498873281,11.35275191,128.96,128.93,20.0]
[1743498873685,0.063,128.96,128.93,20.0]
[1743498874065,11.35275191,128.96,128.93,20.0]
[1743498874485,0.063,128.96,128.93,20.0]
[1743498876688,11.35275191,128.96,128.93,20.0]
[1743498877083,0.063,128.96,128.93,27.7561]
[1743498877286,0.063,128.96,128.93,20.0]
[1743498877509,11.35275191,128.96,128.93,20.0]
[1743498877692,0.063,128.96,128.95,20.0]
[1743498878092,0.063,128.96,128.95,38.64964886]
[1743498879395,0.063,128.96,128.95,20.0]
[1743498879700,0.063,128.96,128.93,20.0]
[1743498881210,0.063,128.96,128.95,20.0]
[1743498882694,0.063,128.96,128.93,38.64964886]
[1743498884715,11.28975191,128.95,128.93,20.0]
[1743498884896,11.28975191,128.94,128.93,20.0]
[1743498885493,11.28975191,128.94,128.9,38.64964886]
[1743498885806,7.7567,128.92,128.9,38.64964886]
[1743498886001,7.7567,128.92,128.9,20.0]
[1743498886219,19.04645191,128.92,128.9,20.0]
[1743498887520,19.04645191,128.92,128.87,20.0]
[1743498887521,11.28975191,128.91,128.87,20.0]
[1743498887715,11.28975191,128.91,128.88,18.64964886]
[1743498887911,11.28975191,128.92,128.89,20.0]
[1743498889600,92.98975191,128.93,128.89,20.0]
[1743498889802,81.7,128.93,128.9,7.7579]
[1743498889999,81.7,128.93,128.91,20.0]
[1743498890203,30.0,128.92,128.91,20.0]
[1743498890830,89.4561,128.93,128.91,20.0]
[1743498891212,100.74585191,128.93,128.91,20.0]
[1743498891523,92.98975191,128.93,128.91,20.0]
[1743498891729,100.74585191,128.93,128.91,20.0]
[1743498893728,81.7,128.93,128.91,20.0]
[1743498894430,19.04485191,128.95,128.91,20.0]
[1743498895306,11.28975191,128.95,128.91,20.0]
[1743498895509,81.763,128.96,128.93,20.0]
[1743498895711,30.0,128.94,128.93,46.690072]
[1743498896214,0.063,128.96,128.95,38.64964886]
[1743498896729,30.063,128.96,128.95,38.79181043]
[1743498896926,30.063,128.96,128.95,20.0]
[1743498897102,0.063,128.96,128.95,38.64964886]
[1743498897511,0.063,128.96,128.95,38.79181043]
[1743498898722,81.7,128.95,128.92,20.0]
[1743498898919,11.28975191,128.93,128.9,20.0]
[1743498899829,81.7,128.95,128.91,18.79181043]
[1743498900035,89.4551,128.95,128.93,20.0]
[1743498900239,7.7551,128.95,128.93,20.0]
[1743498901210,0.063,128.96,128.95,20.14216157]
[1743498901537,0.063,128.96,128.95,38.933972]
[1743498902033,0.063,128.96,128.95,46.688872]
[1743498904238,0.063,128.96,128.95,38.933972]
[1743498904539,0.063,128.96,128.95,46.688872]
[1743498904918,0.063,129.0,128.99,20.14216157]
[1743498905125,0.063,129.0,128.99,38.933972]
[1743498906041,0.063,129.0,128.99,46.686472]
[1743498906921,0.063,129.01,129.0,25.46151043]
[1743498907121,0.063,129.02,129.01,39.29181043]
[1743498907317,0.063,129.02,129.01,39.433972]
[1743498907522,0.063,129.06,129.05,38.79181043]
[1743498907725,0.063,129.06,129.05,38.933972]
[1743498907941,0.063,129.06,129.05,46.682872]
[1743498909618,0.063,129.06,129.05,47.182872]
[1743498910847,0.063,129.09,129.08,20.64216157]
[1743498911238,0.063,129.09,129.08,39.29181043]
[1743498912037,0.063,129.09,129.08,47.03891043]
[1743498912958,0.063,129.09,129.08,47.181072]
[1743498914343,0.063,129.09,129.08,46.681072]
[1743498914539,0.063,129.09,129.08,47.181072]
[1743498916654,0.063,129.09,129.08,20.0]
[1743498917737,0.063,129.09,129.08,38.64964886]
[1743498918437,0.063,129.09,129.08,20.0]
[1743498918645,0.063,129.09,129.08,38.64964886]
[1743498919358,0.063,129.09,129.05,0.14216157]
[1743498920439,0.063,129.09,129.06,20.0]
[1743498920440,18.04507665,129.09,129.06,20.0]
[1743498920654,17.98207665,129.08,129.04,20.0]
[1743498920858,0.063,129.09,129.04,20.0]
[1743498920859,37.98207665,129.07,129.04,20.0]
[1743498921159,37.98207665,129.07,129.02,20.14216157]
[1743498921359,17.98207665,129.04,129.0,20.0]
[1743498921557,24.71717665,129.04,129.0,20.0]
[1743498922561,7.7501,129.03,129.0,20.0]
[1743498924150,6.7351,129.04,129.02,20.0]
[1743498924352,99.68207665,129.06,129.02,20.0]
[1743498924553,81.7,129.06,129.04,20.0]
[1743498924757,30.0,129.05,129.04,20.0]
[1743498925074,30.0,129.05,129.02,20.0]
[1743498925251,47.98207665,129.05,129.01,18.933972]
[1743498925451,17.98207665,129.05,129.01,18.79181043]
[1743498925755,17.98207665,129.05,129.03,20.0]
[1743498925957,17.98207665,129.06,129.03,20.0]
[1743498926361,17.98207665,129.05,129.01,18.79181043]
[1743498926554,14.5518,129.07,129.02,20.0]
[1743498926751,17.98207665,129.06,129.02,20.0]
[1743498926956,25.73047665,129.06,129.02,20.0]
[1743498927252,17.98207665,129.04,129.0,20.0]
[1743498927441,7.7484,129.06,129.0,20.0]
[1743498927442,17.98207665,129.05,129.0,20.0]
[1743498928758,7.7495,129.04,129.0,20.0]
[1743498929068,25.73157665,129.04,129.0,20.0]
[1743498929447,17.98207665,129.04,129.0,20.0]
[1743498929647,11.25471183,129.04,129.0,27.7519]
[1743498929861,19.00381183,129.05,129.0,27.7519]
[1743498931251,19.00381183,129.05,128.96,19.8846]
[1743498931252,20.0,129.02,128.98,20.0]
[1743498931466,11.25471183,129.03,128.98,20.0]
[1743498931975,3.3779,128.99,128.94,20.0]
[1743498932152,11.25471183,128.98,128.94,20.0]
[1743498932975,11.25471183,128.98,128.92,18.82181043]
[1743498932976,11.25471183,128.96,128.92,20.03]
[1743498933283,20.0,128.93,128.92,0.03]
[1743498933477,20.0,128.93,128.92,20.03]
[1743498933682,20.0,128.93,128.84,6.7995]
[1743498933683,81.7,128.92,128.86,20.0]
[1743498933866,20.0,128.89,128.88,20.0]
[1743498934459,20.0,128.89,128.85,0.14216157]
[1743498934460,38.04917132,128.89,128.85,20.0]
[1743498934671,20.0,128.86,128.85,20.14216157]
[1743498934967,20.0,128.86,128.84,0.17216157]
[1743498935169,18.04917132,128.88,128.84,18.82181043]
[1743498935370,18.04917132,128.88,128.87,0.03]
[1743498935676,50.0,128.88,128.87,0.03]
[1743498937083,50.0,128.88,128.87,20.03]
[1743498937267,18.04917132,128.91,128.87,20.03]
[1743498937671,20.0,128.9,128.89,20.0]
[1743498937869,50.0,128.9,128.89,20.0]
[1743498938771,30.0,128.9,128.89,20.0]
[1743498939369,18.04917132,128.93,128.89,20.0]
[1743498939884,18.04917132,128.94,128.89,27.7584]
[1743498940060,105.99167132,128.95,128.91,20.0]
[1743498940377,30.0,128.92,128.91,38.933972]
[1743498940885,27.79267132,128.99,128.95,20.0]
[1743498941097,6.3656,128.99,128.95,20.0]
[1743498941262,6.3656,128.99,128.97,20.0]
[1743498942291,24.41477132,128.99,128.97,20.0]
[1743498943996,18.04917132,128.98,128.94,18.79181043]
[1743498944197,38.04917132,128.96,128.93,20.0]
[1743498944378,18.04917132,128.95,128.93,20.0]
[1743498944765,18.04917132,128.94,128.91,20.0]
[1743498945460,18.04917132,128.94,128.91,27.7572]
[1743498945871,7.53892391,128.94,128.91,27.7572]
[1743498947289,8.03902491,128.94,128.91,27.7572]
[1743498947791,0.500101,128.94,128.93,20.0]
[1743498948096,0.500101,128.94,128.93,38.79181043]
[1743498948585,0.500101,128.94,128.93,20.0]
[1743498949369,0.500101,128.94,128.93,38.79181043]
[1743498949567,0.500101,128.94,128.93,46.54791043]
[1743498949974,0.500101,128.94,128.93,38.79181043]
[1743498950794,0.500101,128.94,128.93,46.54791043]
[1743498950987,0.500101,128.94,128.93,38.79181043]
[1743498951387,0.500101,128.94,128.93,46.54791043]
[1743498951789,0.500101,128.94,128.93,38.79181043]
[1743498952697,26.30477232,128.94,128.91,20.0]
[1743498953431,18.04917132,128.93,128.91,20.0]
[1743498953576,18.04917132,128.93,128.88,0.03]
[1743498953577,20.0,128.89,128.88,0.03]
[1743498953777,45.80767132,128.89,128.88,0.03]
[1743498954669,25.80767132,128.89,128.88,0.03]
[1743498956906,18.04917132,128.89,128.88,0.03]
[1743498957491,20.0,128.89,128.88,0.03]
[1743498958187,99.74917132,128.91,128.89,20.0]
[1743498958385,18.04917132,128.92,128.89,20.0]
[1743498959799,18.04917132,128.91,128.89,20.0]
[1743498959996,18.04917132,128.9,128.88,18.82181043]
[1743498960297,7.7569,128.92,128.88,18.82181043]
[1743498960298,18.04917132,128.89,128.88,0.03]
[1743498962486,25.80767132,128.89,128.88,0.03]
[1743498965419,18.04917132,128.89,128.87,20.03]
[1743498966314,18.54927232,128.89,128.87,20.03]
[1743498967319,18.54927232,128.89,128.87,20.03]
[1743498967823,18.54927232,128.89,128.88,0.03]
[1743498968713,0.500101,128.89,128.88,0.03]
[1743498969596,0.500101,128.89,128.88,18.82181043]
[1743498970220,0.500101,128.89,128.88,0.03]
[1743498970425,25.80717132,128.9,128.88,0.03]
[1743498971698,18.04917132,128.89,128.88,0.03]
[1743498974809,18.04917132,128.9,128.88,0.03]
[1743498975200,18.04917132,128.9,128.89,20.0]
[1743498975896,18.04917132,128.9,128.88,18.82181043]
[1743498975897,31.27926469,128.9,128.88,0.03]
[1743498976096,11.27926469,128.89,128.88,0.03]
[1743498976328,31.27926469,128.89,128.88,0.03]
[1743498976708,37.99666469,128.89,128.88,0.03]
[1743498977423,49.27592938,128.89,128.88,0.03]
[1743498977598,32.50342938,128.89,128.88,0.03]
[1743498977800,40.26192938,128.89,128.88,0.03]
[1743498978013,40.26192938,128.89,128.87,0.03]
[1743498978207,22.55852938,128.88,128.87,0.03]
[1743498978417,104.25852938,128.88,128.87,0.03]
[1743498979835,112.01762938,128.88,128.87,0.03]
[1743498980315,118.36961719,128.88,128.87,0.03]
[1743498980709,20.0,128.85,128.84,0.03]
[1743498981030,31.27926469,128.85,128.84,0.03]
[1743498982236,39.04016469,128.85,128.84,0.03]
[1743498986718,39.54026569,128.85,128.84,0.03]
[1743498987433,0.500101,128.85,128.84,0.03]
[1743498987645,31.77936569,128.85,128.84,0.03]
[1743498988334,20.500101,128.85,128.84,0.03]
[1743498988640,0.500101,128.85,128.84,0.03]
[1743498991530,0.500101,128.85,128.84,18.82181043]
[1743498992143,0.500101,128.85,128.84,18.963972]
[1743498992348,1e-06,128.85,128.84,18.963972]
[1743498992645,1e-06,128.85,128.84,26.725472]
[1743498993945,1e-06,128.85,128.84,27.225472]
[1743498994134,0.063,128.9,128.89,38.933972]
[1743498994339,0.063,128.9,128.89,38.79181043]
[1743498994739,0.063,128.9,128.89,46.55031043]
[1743498994948,0.063,128.9,128.89,46.692472]
[1743498996827,0.063,128.9,128.89,38.933972]
[1743498997549,0.063,128.9,128.89,38.79181043]
[1743498998469,0.063,128.9,128.89,46.692472]
[1743498998632,0.063,128.9,128.89,38.933972]
[1743498998960,0.063,128.9,128.89,46.692472]
[1743498999751,0.063,128.9,128.89,18.79181043]
[1743498999955,0.063,128.9,128.89,38.79181043]
[1743499000661,0.063,128.9,128.89,46.692472]
[1743499001754,0.063,128.9,128.89,47.192472]
[1743499003849,0.063,128.94,128.93,38.933972]
[1743499005845,0.063,128.94,128.93,46.690072]
[1743499006455,0.063,128.94,128.93,38.933972]
[1743499006961,0.063,128.94,128.92,18.79181043]
[1743499007342,0.063,128.94,128.93,20.0]
[1743499008065,0.063,128.94,128.93,38.79181043]
[1743499008639,0.063,128.94,128.93,46.690072]
[1743499012461,0.0001,128.94,128.93,46.690072]
[1743499012657,0.0001,128.94,128.93,47.190072]
[1743499012971,0.063,129.03,129.02,20.14216157]
[1743499013172,0.063,129.03,129.02,38.79181043]
[1743499013173,30.063,129.03,129.02,38.79181043]
[1743499015543,30.063,129.03,129.02,46.54251043]
[1743499015750,0.063,129.03,129.02,46.54251043]
[1743499016066,0.063,129.03,129.02,38.79181043]
[1743499016552,0.063,129.03,129.02,46.54251043]
[1743499016763,0.063,129.03,129.02,46.684672]
[1743499018560,0.063,129.03,129.02,38.933972]
[1743499019065,0.063,129.03,129.02,46.684672]
[1743499019971,0.063,129.03,129.02,47.184672]
[1743499020468,0.063,129.03,129.02,46.684672]
[1743499020851,0.063,129.03,129.02,38.933972]
[1743499021879,18.06697124,129.03,129.02,20.0]
[1743499022169,18.06697124,129.03,128.98,38.79181043]
[1743499022353,18.00397124,129.01,129.0,20.0]
[1743499022554,25.75507124,129.02,129.0,20.0]
[1743499022762,7.8133,129.03,129.0,20.0]
[1743499022961,0.063,129.03,129.01,18.79181043]
[1743499023176,0.063,129.03,129.02,20.0]
[1743499023544,18.06697124,129.03,128.99,20.0]
[1743499023765,18.00397124,129.02,128.99,20.0]
[1743499023956,18.00397124,129.01,128.98,18.79181043]
[1743499024779,18.00397124,128.99,128.97,20.0]
[1743499024979,14.7392,129.0,128.97,38.933972]
[1743499024980,18.00397124,128.98,128.97,38.933972]
[1743499025300,18.00397124,128.99,128.97,38.933972]
[1743499025979,18.00397124,128.99,128.98,18.79181043]
[1743499026465,18.00397124,128.99,128.97,20.0]
[1743499026672,25.75707124,128.98,128.97,38.79181043]
[1743499026866,25.75707124,128.98,128.97,20.0]
[1743499027376,20.0,128.98,128.97,38.79181043]
[1743499027571,7.0592,129.03,129.0,0.28432314]
[1743499027775,0.063,129.03,129.02,38.79181043]
[1743499028508,20.063,129.03,129.02,38.933972]
[1743499028788,0.063,129.03,129.02,38.933972]
[1743499028981,0.063,129.03,129.02,46.684672]
[1743499029877,0.063,129.03,129.02,38.933972]
[1743499032678,0.063,129.03,129.02,46.684672]
[1743499036082,0.063,129.03,129.02,47.184672]
[1743499036797,0.063,129.03,129.02,46.684672]
[1743499037589,0.063,129.03,129.02,38.933972]
[1743499037783,0.063,129.03,129.02,46.684672]
[1743499038184,0.063,129.03,129.02,38.933972]
[1743499039887,20.0,129.02,129.01,18.79181043]
[1743499040091,20.0,129.01,129.0,38.79181043]
[1743499040802,31.25117216,129.01,129.0,38.64964886]
[1743499041110,31.25117216,129.01,128.95,20.0]
[1743499041111,69.63194432,129.01,128.95,20.0]
[1743499041276,11.25117216,128.96,128.95,20.14216157]
[1743499041472,11.25117216,128.96,128.95,38.79181043]
[1743499041692,11.25117216,128.96,128.95,0.14216157]
[1743499042514,11.25117216,128.96,128.94,0.03]
[1743499042682,31.25117216,128.95,128.94,0.03]
[1743499043396,20.0,128.95,128.94,18.963972]
[1743499044205,20.0,128.95,128.94,18.82181043]
[1743499044401,20.0,128.95,128.94,18.963972]
[1743499044708,6.7307,128.98,128.96,18.79181043]
[1743499045011,6.7083,129.01,128.99,18.79181043]
[1743499045198,6.7083,129.01,129.0,38.79181043]
[1743499045395,6.7083,129.01,128.98,20.0]
[1743499045396,20.0,128.99,128.98,20.0]
[1743499045599,20.0,128.99,128.98,38.933972]
[1743499045786,6.7083,129.01,129.0,38.79181043]
[1743499045986,24.73731224,129.01,129.0,38.79181043]
[1743499047301,18.09201224,129.03,129.01,18.79181043]
[1743499047493,18.09201224,129.03,129.0,46.54361043]
[1743499047494,18.09201224,129.03,129.02,18.79181043]
[1743499047699,20.063,129.03,129.02,38.79181043]
[1743499048001,0.063,129.03,129.02,38.79181043]
[1743499048307,0.063,129.03,129.02,18.79181043]
[1743499048502,18.09201224,129.03,129.02,18.79181043]
[1743499048805,45.84211224,129.03,129.0,20.0]
[1743499049003,38.09201224,129.03,129.0,27.7518]
[1743499049207,38.09201224,129.03,129.01,18.79181043]
[1743499049506,20.063,129.03,129.02,38.79181043]
[1743499049803,20.063,129.03,129.02,38.933972]
[1743499050890,20.063,129.03,129.02,18.79181043]
[1743499051095,20.063,129.03,129.02,38.79181043]
[1743499051299,20.063,129.03,129.02,18.79181043]
[1743499051606,38.09201224,129.03,129.02,18.79181043]
[1743499051793,20.063,129.03,129.02,18.79181043]
[1743499052194,20.063,129.03,129.02,38.79181043]
[1743499052389,45.84211224,129.03,129.01,18.64964886]
[1743499052985,38.09201224,129.03,129.01,18.64964886]
[1743499054303,18.02901224,129.02,128.98,20.0]
[1743499054504,20.0,128.97,128.94,20.03]
[1743499054694,7.8131,129.03,128.94,20.03]
[1743499054695,18.02901224,128.98,128.96,20.0]
[1743499055304,18.02901224,128.98,128.95,18.933972]
[1743499055594,20.0,128.97,128.96,38.79181043]
[1743499056113,20.0,128.97,128.96,18.79181043]
[1743499056493,38.02901224,128.97,128.94,20.03]
[1743499056693,18.02901224,128.96,128.94,0.03]
[1743499056909,18.02901224,128.96,128.94,20.03]
[1743499057486,18.02901224,128.96,128.94,0.03]
[1743499057685,18.02901224,128.96,128.94,18.82181043]
[1743499057894,26.8825,128.97,128.95,20.0]
[1743499058115,20.0,128.97,128.96,18.79181043]
[1743499058810,18.02901224,128.99,128.96,18.79181043]
[1743499058998,20.0,128.97,128.96,18.79181043]
[1743499061212,38.02901224,128.97,128.95,0.14216157]